[Event "*** Titled Tuesday Blitz"]
[Site "Chess.com"]
[Date "2020.05.05"]
[Round "2"]
[White "Mischuk_D"]
[Black "wanyaland"]
[Result "1-0"]
[WhiteElo "2611"]
[BlackElo "2237"]
[TimeControl "180+1"]
[EndTime "10:18:57 PDT"]
[Termination "Mischuk_D won by resignation"]

1. e4 {[%clk 0:03:00.9]} 1... e5 {[%clk 0:02:57.7]} 2. Nf3 {[%clk 0:03:00.6]}
2... Nc6 {[%clk 0:02:57.1]} 3. Bb5 {[%clk 0:03:00.4]} 3... a6 {[%clk 0:02:56.4]}
4. Ba4 {[%clk 0:03:00.5]} 4... Nf6 {[%clk 0:02:55]} 5. O-O {[%clk 0:03:00.2]}
5... b5 {[%clk 0:02:55.1]} 6. Bb3 {[%clk 0:03:00]} 6... Bc5 {[%clk 0:02:55.7]}
7. d3 {[%clk 0:02:59]} 7... d6 {[%clk 0:02:55.4]} 8. Be3 {[%clk 0:02:57.9]} 8...
h6 {[%clk 0:02:55]} 9. Bxc5 {[%clk 0:02:56.9]} 9... dxc5 {[%clk 0:02:54.3]} 10.
a4 {[%clk 0:02:53.5]} 10... Rb8 {[%clk 0:02:52.9]} 11. h3 {[%clk 0:02:52.8]}
11... g5 {[%clk 0:02:49.9]} 12. Nh2 {[%clk 0:02:49.1]} 12... Rg8 {[%clk
0:02:45.8]} 13. Nc3 {[%clk 0:02:46.5]} 13... g4 {[%clk 0:02:44.3]} 14. h4 {[%clk
0:02:44.8]} 14... Nd4 {[%clk 0:02:31.7]} 15. g3 {[%clk 0:02:35.2]} 15... Nxb3
{[%clk 0:02:05.1]} 16. cxb3 {[%clk 0:02:36.1]} 16... Be6 {[%clk 0:02:04.2]} 17.
axb5 {[%clk 0:02:34.9]} 17... axb5 {[%clk 0:02:03.8]} 18. Ra6 {[%clk 0:02:22.5]}
18... Qd7 {[%clk 0:01:52.6]} 19. Qd2 {[%clk 0:02:20.8]} 19... Rg6 {[%clk
0:01:45.1]} 20. Qe3 {[%clk 0:02:17.1]} 20... Qd4 {[%clk 0:01:39.6]} 21. Qd2
{[%clk 0:01:50.8]} 21... b4 {[%clk 0:01:05.6]} 22. Ne2 {[%clk 0:01:50.5]} 22...
Qd7 {[%clk 0:01:03.1]} 23. Qe3 {[%clk 0:01:49.6]} 23... Qb5 {[%clk 0:00:59.3]}
24. Rfa1 {[%clk 0:01:48.5]} 24... Rd8 {[%clk 0:00:57.2]} 25. Nc1 {[%clk
0:01:46.7]} 25... h5 {[%clk 0:00:54.5]} 26. R6a5 {[%clk 0:01:45.7]} 26... Qd7
{[%clk 0:00:51.6]} 27. Qxc5 {[%clk 0:01:42.5]} 27... Qd4 {[%clk 0:00:47.3]} 28.
Qxd4 {[%clk 0:01:35.2]} 28... exd4 {[%clk 0:00:46.9]} 29. Rc5 {[%clk 0:01:35.1]}
29... Rd7 {[%clk 0:00:44.7]} 30. Ra4 {[%clk 0:01:32.7]} 30... Ke7 {[%clk
0:00:42.1]} 31. Rxb4 {[%clk 0:01:31.1]} 31... Kd6 {[%clk 0:00:41.7]} 32. Rg5
{[%clk 0:01:25.3]} 32... Rxg5 {[%clk 0:00:39.3]} 33. hxg5 {[%clk 0:01:25.3]}
33... Nh7 {[%clk 0:00:39]} 34. Rxd4+ {[%clk 0:01:24.7]} 34... Ke7 {[%clk
0:00:38.2]} 35. Rxd7+ {[%clk 0:01:17.7]} 35... Kxd7 {[%clk 0:00:39.1]} 36. Kf1
{[%clk 0:01:18.1]} 36... Nxg5 {[%clk 0:00:38.7]} 37. Ke2 {[%clk 0:01:18.1]}
37... c5 {[%clk 0:00:34.8]} 38. Ke3 {[%clk 0:01:15.7]} 38... Kc6 {[%clk
0:00:33.4]} 39. Nf1 {[%clk 0:01:12.8]} 39... Nf3 {[%clk 0:00:31.2]} 40. Nd2
{[%clk 0:01:10]} 40... Nd4 {[%clk 0:00:30.2]} 41. Nc4 {[%clk 0:01:08.9]} 41...
Kb5 {[%clk 0:00:29]} 42. Ne2 {[%clk 0:00:48.2]} 42... Nxe2 {[%clk 0:00:19.4]}
43. Kxe2 {[%clk 0:00:47.7]} 43... Kb4 {[%clk 0:00:20.3]} 44. Nd6 {[%clk
0:00:39]} 44... Kxb3 {[%clk 0:00:19.9]} 45. Nb7 {[%clk 0:00:39.2]} 45... Kb4
{[%clk 0:00:18.5]} 46. Ke3 {[%clk 0:00:38.5]} 46... f6 {[%clk 0:00:18.2]} 47. d4
{[%clk 0:00:35.1]} 47... cxd4+ {[%clk 0:00:17.8]} 48. Kxd4 {[%clk 0:00:36]}
48... Bc8 {[%clk 0:00:16.6]} 49. Nd6 {[%clk 0:00:35.6]} 49... Be6 {[%clk
0:00:16.3]} 50. Ne8 {[%clk 0:00:35.4]} 50... f5 {[%clk 0:00:15.6]} 51. Ng7
{[%clk 0:00:35.7]} 51... f4 {[%clk 0:00:11.8]} 52. Nxe6 {[%clk 0:00:30.3]} 52...
fxg3 {[%clk 0:00:11.8]} 53. fxg3 {[%clk 0:00:30.1]} 1-0

[Event "*** Titled Tuesday Blitz"]
[Site "Chess.com"]
[Date "2020.05.05"]
[Round "2"]
[White "isla88"]
[Black "Ranindu2003"]
[Result "1-0"]
[WhiteElo "2292"]
[BlackElo "2496"]
[TimeControl "180+1"]
[EndTime "10:18:58 PDT"]
[Termination "isla88 won by resignation"]

1. d4 {[%clk 0:03:00.9]} 1... Nf6 {[%clk 0:02:59.4]} 2. Nc3 {[%clk 0:03:00.9]}
2... d5 {[%clk 0:02:58.4]} 3. Bf4 {[%clk 0:03:00.9]} 3... a6 {[%clk 0:02:54]} 4.
e3 {[%clk 0:02:59.9]} 4... e6 {[%clk 0:02:54]} 5. Nf3 {[%clk 0:02:59.2]} 5...
Bd6 {[%clk 0:02:53.9]} 6. Ne5 {[%clk 0:02:58.2]} 6... O-O {[%clk 0:02:52.9]} 7.
Bd3 {[%clk 0:02:57]} 7... c5 {[%clk 0:02:52.9]} 8. Qf3 {[%clk 0:02:52]} 8... Nc6
{[%clk 0:02:51.2]} 9. Nxc6 {[%clk 0:02:48.3]} 9... bxc6 {[%clk 0:02:52.1]} 10.
Bg5 {[%clk 0:02:40.3]} 10... cxd4 {[%clk 0:02:30.1]} 11. exd4 {[%clk 0:02:35.2]}
11... e5 {[%clk 0:02:30.2]} 12. dxe5 {[%clk 0:02:32.8]} 12... Bxe5 {[%clk
0:02:30.8]} 13. O-O {[%clk 0:02:30.8]} 13... Qc7 {[%clk 0:02:28.4]} 14. h3
{[%clk 0:02:23.6]} 14... h6 {[%clk 0:02:19.1]} 15. Bh4 {[%clk 0:02:17.9]} 15...
Rb8 {[%clk 0:02:09.1]} 16. Rab1 {[%clk 0:02:08.8]} 16... Be6 {[%clk 0:02:02.2]}
17. Rfe1 {[%clk 0:02:08]} 17... Rfe8 {[%clk 0:01:48.8]} 18. Bxa6 {[%clk
0:02:03.3]} 18... Bxc3 {[%clk 0:01:40.3]} 19. Qxc3 {[%clk 0:01:59.9]} 19... Ne4
{[%clk 0:01:39.6]} 20. Rxe4 {[%clk 0:01:59.2]} 20... dxe4 {[%clk 0:01:40.5]} 21.
Bg3 {[%clk 0:01:59]} 21... Qa7 {[%clk 0:01:16.2]} 22. Bxb8 {[%clk 0:01:53.2]}
22... Rxb8 {[%clk 0:01:14.6]} 23. Bc4 {[%clk 0:01:37.8]} 23... Qc5 {[%clk
0:01:13.7]} 24. Bb3 {[%clk 0:01:33.7]} 24... Qxc3 {[%clk 0:00:59.9]} 25. bxc3
{[%clk 0:01:34.6]} 25... c5 {[%clk 0:01:00.7]} 26. a4 {[%clk 0:01:27.8]} 26...
Kf8 {[%clk 0:00:48.8]} 27. Ba2 {[%clk 0:01:26.6]} 27... Rxb1+ {[%clk 0:00:45.3]}
28. Bxb1 {[%clk 0:01:27.5]} 28... Ke7 {[%clk 0:00:43]} 29. Kf1 {[%clk
0:01:26.1]} 29... Kd6 {[%clk 0:00:39.6]} 30. Ke2 {[%clk 0:01:26.2]} 30... f5
{[%clk 0:00:33]} 31. Ke3 {[%clk 0:01:26.3]} 31... g5 {[%clk 0:00:32.6]} 32. g3
{[%clk 0:01:24.3]} 32... Bd5 {[%clk 0:00:29.9]} 33. c4 {[%clk 0:01:06.5]} 33...
Bxc4 {[%clk 0:00:29.6]} 34. g4 {[%clk 0:01:07]} 34... f4+ {[%clk 0:00:22.4]} 35.
Kxe4 {[%clk 0:01:05.3]} 35... Bf1 {[%clk 0:00:13.8]} 36. h4 {[%clk 0:00:54.9]}
36... Bg2+ {[%clk 0:00:12.7]} 37. Kf5 {[%clk 0:00:53.3]} 37... gxh4 {[%clk
0:00:09.4]} 38. Kxf4 {[%clk 0:00:53.7]} 38... c4 {[%clk 0:00:08.8]} 39. c3
{[%clk 0:00:53.4]} 39... Kc5 {[%clk 0:00:08.7]} 40. Be4 {[%clk 0:00:47]} 40...
Bf1 {[%clk 0:00:07]} 41. g5 {[%clk 0:00:33.1]} 41... hxg5+ {[%clk 0:00:04.9]}
42. Kg4 {[%clk 0:00:23.6]} 42... h3 {[%clk 0:00:05.5]} 43. Kg3 {[%clk
0:00:20.9]} 43... Kd6 {[%clk 0:00:05.6]} 44. Bf3 {[%clk 0:00:19.9]} 44... Ke5
{[%clk 0:00:05.8]} 45. a5 {[%clk 0:00:19.2]} 45... Kd6 {[%clk 0:00:05.9]} 46. a6
{[%clk 0:00:19.6]} 46... Kc7 {[%clk 0:00:06.5]} 47. a7 {[%clk 0:00:19.9]} 1-0

[Event "*** Titled Tuesday Blitz"]
[Site "Chess.com"]
[Date "2020.05.05"]
[Round "2"]
[White "ChadBiryani"]
[Black "EvgenyRomanov"]
[Result "0-1"]
[WhiteElo "2370"]
[BlackElo "2647"]
[TimeControl "180+1"]
[EndTime "10:18:59 PDT"]
[Termination "EvgenyRomanov won on time"]

1. b3 {[%clk 0:03:00.9]} 1... e5 {[%clk 0:02:58.9]} 2. Bb2 {[%clk 0:03:00.8]}
2... Nc6 {[%clk 0:02:58.4]} 3. e3 {[%clk 0:03:00.9]} 3... g6 {[%clk 0:02:57.8]}
4. f4 {[%clk 0:02:54.1]} 4... Bg7 {[%clk 0:02:55.4]} 5. Bb5 {[%clk 0:02:49.6]}
5... Nge7 {[%clk 0:02:54.2]} 6. Nf3 {[%clk 0:02:46.8]} 6... d6 {[%clk
0:02:51.3]} 7. O-O {[%clk 0:02:45.3]} 7... O-O {[%clk 0:02:50.8]} 8. d3 {[%clk
0:02:30.9]} 8... a6 {[%clk 0:02:40.3]} 9. Bxc6 {[%clk 0:02:30.7]} 9... Nxc6
{[%clk 0:02:41.2]} 10. Nbd2 {[%clk 0:02:29.8]} 10... Qe7 {[%clk 0:02:32.4]} 11.
Re1 {[%clk 0:02:25.4]} 11... Bd7 {[%clk 0:02:30.9]} 12. Qe2 {[%clk 0:02:23.8]}
12... Rae8 {[%clk 0:02:28.9]} 13. fxe5 {[%clk 0:02:13.4]} 13... dxe5 {[%clk
0:02:27]} 14. e4 {[%clk 0:02:08.8]} 14... f5 {[%clk 0:02:17.7]} 15. Nc4 {[%clk
0:02:03.2]} 15... f4 {[%clk 0:02:14.2]} 16. Ba3 {[%clk 0:02:03]} 16... Qd8
{[%clk 0:02:02]} 17. Bxf8 {[%clk 0:02:02.5]} 17... Rxf8 {[%clk 0:02:02.9]} 18.
Rad1 {[%clk 0:01:58.3]} 18... b5 {[%clk 0:02:02.2]} 19. Na3 {[%clk 0:01:44.7]}
19... Qe7 {[%clk 0:02:00.2]} 20. Nb1 {[%clk 0:01:44.6]} 20... g5 {[%clk
0:02:00.3]} 21. c3 {[%clk 0:01:33.8]} 21... g4 {[%clk 0:01:59.7]} 22. Nfd2
{[%clk 0:01:34]} 22... h5 {[%clk 0:01:46.9]} 23. Rf1 {[%clk 0:01:32.9]} 23...
Bh6 {[%clk 0:01:41.8]} 24. a4 {[%clk 0:01:22.3]} 24... Kh8 {[%clk 0:01:40.2]}
25. axb5 {[%clk 0:01:14]} 25... axb5 {[%clk 0:01:41.1]} 26. Qf2 {[%clk
0:01:07.4]} 26... h4 {[%clk 0:01:36.6]} 27. b4 {[%clk 0:00:54.4]} 27... g3
{[%clk 0:01:25.1]} 28. Qc5 {[%clk 0:00:52.5]} 28... gxh2+ {[%clk 0:01:22.1]} 29.
Kxh2 {[%clk 0:00:52.8]} 29... Qg5 {[%clk 0:01:21.4]} 30. Rf3 {[%clk 0:00:41.9]}
30... Rg8 {[%clk 0:01:18.1]} 31. Rg1 {[%clk 0:00:40.1]} 31... Bf8 {[%clk
0:00:58.9]} 32. Qd5 {[%clk 0:00:32.5]} 32... Rg7 {[%clk 0:00:50.5]} 33. d4
{[%clk 0:00:30.2]} 33... h3 {[%clk 0:00:48]} 34. g3 {[%clk 0:00:17.3]} 34... Bd6
{[%clk 0:00:38.4]} 35. dxe5 {[%clk 0:00:13.2]} 35... fxg3+ {[%clk 0:00:26.4]}
36. Rfxg3 {[%clk 0:00:09.4]} 36... Bxe5 {[%clk 0:00:26.6]} 37. Nf1 {[%clk
0:00:10]} 37... Qf4 {[%clk 0:00:20.2]} 38. Nbd2 {[%clk 0:00:06.5]} 38... Qf2+
{[%clk 0:00:18.7]} 39. Kh1 {[%clk 0:00:07.1]} 39... Bxg3 {[%clk 0:00:18.9]} 40.
Nxg3 {[%clk 0:00:06.3]} 40... Rxg3 {[%clk 0:00:17.9]} 41. Qh5+ {[%clk
0:00:06.6]} 41... Kg8 {[%clk 0:00:16.7]} 42. Qd5+ {[%clk 0:00:05]} 42... Kh8
{[%clk 0:00:14.7]} 43. Qh5+ {[%clk 0:00:04.6]} 43... Kg7 {[%clk 0:00:14.9]} 44.
Rxg3+ {[%clk 0:00:02.5]} 44... Qxg3 {[%clk 0:00:15.6]} 45. Qe2 {[%clk
0:00:03.1]} 45... Bg4 {[%clk 0:00:14.7]} 46. Qf1 {[%clk 0:00:02.6]} 46... Ne5
{[%clk 0:00:14.2]} 47. Qg1 {[%clk 0:00:01.1]} 47... Qxg1+ {[%clk 0:00:11.5]} 0-1

[Event "*** Titled Tuesday Blitz"]
[Site "Chess.com"]
[Date "2020.05.05"]
[Round "2"]
[White "dbrankovic68"]
[Black "Tsukasa06"]
[Result "1-0"]
[WhiteElo "2475"]
[BlackElo "2259"]
[TimeControl "180+1"]
[EndTime "10:19:00 PDT"]
[Termination "dbrankovic68 won on time"]

1. e4 {[%clk 0:02:59.9]} 1... e5 {[%clk 0:02:59]} 2. Nf3 {[%clk 0:02:58]} 2...
Nc6 {[%clk 0:02:57.8]} 3. Bb5 {[%clk 0:02:57.9]} 3... a6 {[%clk 0:02:54.6]} 4.
Ba4 {[%clk 0:02:57.9]} 4... Nf6 {[%clk 0:02:54.3]} 5. O-O {[%clk 0:02:57.9]}
5... Be7 {[%clk 0:02:53.3]} 6. Re1 {[%clk 0:02:57.4]} 6... b5 {[%clk 0:02:53]}
7. Bb3 {[%clk 0:02:57.3]} 7... d6 {[%clk 0:02:53]} 8. c3 {[%clk 0:02:57.4]} 8...
O-O {[%clk 0:02:52.3]} 9. h3 {[%clk 0:02:57.8]} 9... Nb8 {[%clk 0:02:52.1]} 10.
d4 {[%clk 0:02:56.9]} 10... Nbd7 {[%clk 0:02:52.3]} 11. Nbd2 {[%clk 0:02:56.9]}
11... c5 {[%clk 0:02:52.2]} 12. Nf1 {[%clk 0:02:49.2]} 12... Bb7 {[%clk
0:02:49.8]} 13. Ng3 {[%clk 0:02:49.1]} 13... c4 {[%clk 0:02:46.8]} 14. Bc2
{[%clk 0:02:49]} 14... g6 {[%clk 0:02:46.2]} 15. Nh2 {[%clk 0:02:33.1]} 15...
Qc7 {[%clk 0:02:37.8]} 16. Ng4 {[%clk 0:02:31.6]} 16... Rad8 {[%clk 0:02:33.1]}
17. f4 {[%clk 0:02:11.8]} 17... exd4 {[%clk 0:01:48.3]} 18. cxd4 {[%clk
0:02:10]} 18... h5 {[%clk 0:01:32.2]} 19. Nh6+ {[%clk 0:01:41]} 19... Kg7 {[%clk
0:01:31.4]} 20. Nhf5+ {[%clk 0:01:37.5]} 20... gxf5 {[%clk 0:01:22.4]} 21. Nxf5+
{[%clk 0:01:36]} 21... Kh8 {[%clk 0:01:17.2]} 22. Nxe7 {[%clk 0:01:35.8]} 22...
Rfe8 {[%clk 0:01:10.6]} 23. Nf5 {[%clk 0:01:32.8]} 23... Nf8 {[%clk 0:00:50.1]}
24. e5 {[%clk 0:01:06]} 24... Qc6 {[%clk 0:00:49.2]} 25. Re2 {[%clk 0:00:24.3]}
25... dxe5 {[%clk 0:00:48.4]} 26. fxe5 {[%clk 0:00:23.4]} 26... Rxe5 {[%clk
0:00:48.2]} 27. Rf2 {[%clk 0:00:21.6]} 27... Ng6 {[%clk 0:00:41.1]} 28. Qd2
{[%clk 0:00:20.3]} 28... Rxf5 {[%clk 0:00:35.2]} 29. Qh6+ {[%clk 0:00:16.9]}
29... Nh7 {[%clk 0:00:26.5]} 30. Bxf5 {[%clk 0:00:17.2]} 30... Rd6 {[%clk
0:00:19.8]} 31. Bxg6 {[%clk 0:00:13.1]} 31... Rxg6 {[%clk 0:00:17.3]} 32. Qf4
{[%clk 0:00:11.8]} 32... Rxg2+ {[%clk 0:00:16.9]} 33. Kf1 {[%clk 0:00:11.7]}
33... Rxf2+ {[%clk 0:00:15.9]} 34. Qxf2 {[%clk 0:00:11.8]} 34... Qh1+ {[%clk
0:00:16]} 35. Ke2 {[%clk 0:00:12.3]} 35... Qe4+ {[%clk 0:00:15.2]} 36. Kf1
{[%clk 0:00:09.8]} 36... Qh1+ {[%clk 0:00:12.6]} 37. Ke2 {[%clk 0:00:09.9]}
37... Qe4+ {[%clk 0:00:12.9]} 38. Be3 {[%clk 0:00:10.1]} 38... Qd3+ {[%clk
0:00:09.2]} 39. Ke1 {[%clk 0:00:09.6]} 39... c3 {[%clk 0:00:08]} 40. Rd1 {[%clk
0:00:09.4]} 40... cxb2 {[%clk 0:00:04]} 41. Rxd3 {[%clk 0:00:06.2]} 41... b1=Q+
{[%clk 0:00:03.3]} 42. Rd1 {[%clk 0:00:06.7]} 42... Qe4 {[%clk 0:00:02.6]} 43.
d5 {[%clk 0:00:06.3]} 43... Bxd5 {[%clk 0:00:01]} 44. Rd4 {[%clk 0:00:06.3]} 1-0

[Event "*** Titled Tuesday Blitz"]
[Site "Chess.com"]
[Date "2020.05.05"]
[Round "2"]
[White "HonzaVykouk"]
[Black "jonaszmb"]
[Result "1-0"]
[WhiteElo "2714"]
[BlackElo "2487"]
[TimeControl "180+1"]
[EndTime "10:19:01 PDT"]
[Termination "HonzaVykouk won by resignation"]

1. e4 {[%clk 0:03:00.9]} 1... c5 {[%clk 0:02:59.8]} 2. Nf3 {[%clk 0:02:59.9]}
2... Nc6 {[%clk 0:03:00]} 3. d4 {[%clk 0:03:00]} 3... cxd4 {[%clk 0:03:00.9]} 4.
Nxd4 {[%clk 0:02:59.6]} 4... e5 {[%clk 0:03:01.6]} 5. Nb5 {[%clk 0:02:59.4]}
5... a6 {[%clk 0:03:02]} 6. Nd6+ {[%clk 0:02:58.8]} 6... Bxd6 {[%clk 0:03:02.7]}
7. Qxd6 {[%clk 0:02:59.5]} 7... Qf6 {[%clk 0:03:03.3]} 8. Qxf6 {[%clk
0:02:58.6]} 8... Nxf6 {[%clk 0:03:04.2]} 9. Nc3 {[%clk 0:02:57]} 9... Nb4 {[%clk
0:03:04.2]} 10. Kd2 {[%clk 0:02:57.4]} 10... d6 {[%clk 0:02:57.6]} 11. a3 {[%clk
0:02:56.7]} 11... Nc6 {[%clk 0:02:57.5]} 12. Bd3 {[%clk 0:02:55.3]} 12... Be6
{[%clk 0:02:56.3]} 13. Rd1 {[%clk 0:02:54.9]} 13... d5 {[%clk 0:02:53.3]} 14.
exd5 {[%clk 0:02:52.7]} 14... Nxd5 {[%clk 0:02:53.4]} 15. Nxd5 {[%clk
0:02:53.1]} 15... Bxd5 {[%clk 0:02:54.3]} 16. f3 {[%clk 0:02:53.4]} 16... Nd4
{[%clk 0:02:37.9]} 17. Ke1 {[%clk 0:02:28.7]} 17... Rc8 {[%clk 0:02:33.3]} 18.
Be3 {[%clk 0:02:28.1]} 18... O-O {[%clk 0:02:10.9]} 19. c3 {[%clk 0:02:27.9]}
19... Nb3 {[%clk 0:02:01.8]} 20. Rab1 {[%clk 0:02:27.6]} 20... Be6 {[%clk
0:01:59.1]} 21. Be4 {[%clk 0:02:24.7]} 21... b5 {[%clk 0:01:40.5]} 22. Bb7
{[%clk 0:02:18.3]} 22... Rb8 {[%clk 0:01:35.5]} 23. Bd5 {[%clk 0:01:48.7]} 23...
Rfd8 {[%clk 0:00:44]} 24. Bxe6 {[%clk 0:01:45.7]} 24... fxe6 {[%clk 0:00:43.4]}
25. Rxd8+ {[%clk 0:01:39.9]} 25... Rxd8 {[%clk 0:00:44.3]} 26. Ke2 {[%clk
0:01:37]} 26... Kf7 {[%clk 0:00:39.4]} 27. Re1 {[%clk 0:01:36.2]} 27... Rd5
{[%clk 0:00:28.2]} 28. Rd1 {[%clk 0:01:17.6]} 28... a5 {[%clk 0:00:26.2]} 29. a4
{[%clk 0:01:03.4]} 29... bxa4 {[%clk 0:00:24.6]} 30. c4 {[%clk 0:01:03.7]} 30...
Rxd1 {[%clk 0:00:14]} 31. Kxd1 {[%clk 0:01:04.6]} 31... Nd4 {[%clk 0:00:10.6]}
32. Bxd4 {[%clk 0:00:27]} 32... exd4 {[%clk 0:00:11.5]} 33. f4 {[%clk
0:00:27.6]} 33... e5 {[%clk 0:00:12]} 34. fxe5 {[%clk 0:00:27.6]} 34... Ke6
{[%clk 0:00:12.3]} 35. Kd2 {[%clk 0:00:28.5]} 35... Kxe5 {[%clk 0:00:12.7]} 36.
Kd3 {[%clk 0:00:29.4]} 36... g6 {[%clk 0:00:06.7]} 37. g3 {[%clk 0:00:25.7]}
37... h6 {[%clk 0:00:06.6]} 38. h3 {[%clk 0:00:24.7]} 38... h5 {[%clk
0:00:06.8]} 39. h4 {[%clk 0:00:23.5]} 39... a3 {[%clk 0:00:07.2]} 40. bxa3
{[%clk 0:00:23.7]} 40... a4 {[%clk 0:00:07.7]} 41. c5 {[%clk 0:00:21.2]} 41...
Kd5 {[%clk 0:00:08.2]} 42. c6 {[%clk 0:00:22.1]} 42... Kxc6 {[%clk 0:00:08.4]}
43. Kxd4 {[%clk 0:00:23]} 43... Kb5 {[%clk 0:00:05.5]} 44. Kd5 {[%clk
0:00:23.2]} 44... Kb6 {[%clk 0:00:03.5]} 45. Kc4 {[%clk 0:00:23.6]} 45... Kc6
{[%clk 0:00:03.5]} 46. Kb4 {[%clk 0:00:23.9]} 46... Kd5 {[%clk 0:00:04.1]} 47.
Kxa4 {[%clk 0:00:23]} 47... Kc4 {[%clk 0:00:02.4]} 48. Ka5 {[%clk 0:00:23.1]}
48... Kc5 {[%clk 0:00:02.8]} 49. a4 {[%clk 0:00:23.3]} 49... Kc6 {[%clk
0:00:03.3]} 50. Kb4 {[%clk 0:00:23.5]} 50... Kb6 {[%clk 0:00:03.8]} 51. Kc4
{[%clk 0:00:23.5]} 51... Ka5 {[%clk 0:00:03.6]} 52. Kd5 {[%clk 0:00:24.1]} 52...
Kxa4 {[%clk 0:00:04.5]} 53. Ke6 {[%clk 0:00:24.8]} 53... Kb4 {[%clk 0:00:04.8]}
54. Kf6 {[%clk 0:00:25.4]} 54... Kc4 {[%clk 0:00:05.7]} 55. Kxg6 {[%clk
0:00:25.9]} 1-0

[Event "*** Titled Tuesday Blitz"]
[Site "Chess.com"]
[Date "2020.05.05"]
[Round "2"]
[White "Fh2411"]
[Black "Shota_Azaladze"]
[Result "0-1"]
[WhiteElo "2474"]
[BlackElo "2690"]
[TimeControl "180+1"]
[EndTime "10:19:01 PDT"]
[Termination "Shota_Azaladze won by resignation"]

1. Nf3 {[%clk 0:03:00.9]} 1... g6 {[%clk 0:02:56.6]} 2. c4 {[%clk 0:02:59.8]}
2... Bg7 {[%clk 0:02:56.1]} 3. g3 {[%clk 0:03:00.4]} 3... e5 {[%clk 0:02:55.8]}
4. Nc3 {[%clk 0:02:55.6]} 4... Ne7 {[%clk 0:02:55.1]} 5. Bg2 {[%clk 0:02:41.7]}
5... c5 {[%clk 0:02:54.5]} 6. O-O {[%clk 0:02:35.2]} 6... Nbc6 {[%clk
0:02:54.8]} 7. Ne1 {[%clk 0:02:28.7]} 7... O-O {[%clk 0:02:52.5]} 8. Nc2 {[%clk
0:02:25.1]} 8... d6 {[%clk 0:02:53]} 9. d3 {[%clk 0:02:15.6]} 9... Be6 {[%clk
0:02:52.9]} 10. Ne3 {[%clk 0:02:12.3]} 10... Rb8 {[%clk 0:02:49.9]} 11. Rb1
{[%clk 0:02:08.7]} 11... a6 {[%clk 0:02:44.7]} 12. a4 {[%clk 0:01:41.4]} 12...
Nb4 {[%clk 0:02:41.7]} 13. Ned5 {[%clk 0:01:09.3]} 13... Nexd5 {[%clk
0:02:40.7]} 14. cxd5 {[%clk 0:01:03.6]} 14... Bd7 {[%clk 0:02:37.3]} 15. Bd2
{[%clk 0:01:01.7]} 15... f5 {[%clk 0:02:11.9]} 16. Qb3 {[%clk 0:00:38.5]} 16...
h5 {[%clk 0:01:58.1]} 17. h4 {[%clk 0:00:23]} 17... Kh7 {[%clk 0:01:57.5]} 18.
Bg5 {[%clk 0:00:20.1]} 18... Bf6 {[%clk 0:01:57]} 19. Bxf6 {[%clk 0:00:11]}
19... Qxf6 {[%clk 0:01:57.9]} 20. f4 {[%clk 0:00:10.3]} 20... exf4 {[%clk
0:01:56.2]} 21. Rxf4 {[%clk 0:00:11.2]} 21... Rbe8 {[%clk 0:01:52.7]} 22. Rbf1
{[%clk 0:00:11.7]} 22... Re3 {[%clk 0:01:40.7]} 23. Kh2 {[%clk 0:00:11.3]} 23...
Qe5 {[%clk 0:01:30.1]} 24. R1f3 {[%clk 0:00:10.4]} 24... Re8 {[%clk 0:01:24.3]}
25. Qc4 {[%clk 0:00:09.6]} 25... b5 {[%clk 0:01:20.4]} 26. axb5 {[%clk
0:00:09.1]} 26... axb5 {[%clk 0:01:21.3]} 27. Qb3 {[%clk 0:00:08.2]} 27... Re7
{[%clk 0:01:11.3]} 28. Rxe3 {[%clk 0:00:08.5]} 28... Qxe3 {[%clk 0:01:11.2]} 29.
Rf3 {[%clk 0:00:08.7]} 29... Qd2 {[%clk 0:01:08.3]} 30. Rf2 {[%clk 0:00:07.5]}
30... g5 {[%clk 0:01:04.7]} 31. hxg5 {[%clk 0:00:05.4]} 31... Qxg5 {[%clk
0:01:04.2]} 32. Bf3 {[%clk 0:00:03.7]} 32... h4 {[%clk 0:00:59.8]} 33. gxh4
{[%clk 0:00:04.6]} 33... Qxh4+ {[%clk 0:00:59.5]} 34. Kg1 {[%clk 0:00:05.5]}
34... Rg7+ {[%clk 0:00:57.8]} 35. Rg2 {[%clk 0:00:05.8]} 35... Qe1+ {[%clk
0:00:57.6]} 36. Kh2 {[%clk 0:00:05.2]} 36... Qh4+ {[%clk 0:00:48.2]} 37. Kg1
{[%clk 0:00:05]} 37... Rxg2+ {[%clk 0:00:48.3]} 38. Kxg2 {[%clk 0:00:05.6]}
38... f4 {[%clk 0:00:48.9]} 39. Qd1 {[%clk 0:00:02.5]} 39... Bh3+ {[%clk
0:00:46.3]} 40. Kg1 {[%clk 0:00:01.8]} 40... Qg3+ {[%clk 0:00:30.7]} 41. Kh1
{[%clk 0:00:02.7]} 41... Bg4 {[%clk 0:00:31.5]} 42. Qg1 {[%clk 0:00:02.5]} 42...
Bxf3+ {[%clk 0:00:29.1]} 43. exf3 {[%clk 0:00:03.4]} 43... Qxf3+ {[%clk
0:00:29.3]} 44. Qg2 {[%clk 0:00:03.8]} 44... Qxg2+ {[%clk 0:00:28.5]} 45. Kxg2
{[%clk 0:00:04.7]} 45... Nxd3 {[%clk 0:00:27.5]} 46. Nxb5 {[%clk 0:00:05]} 46...
Nxb2 {[%clk 0:00:23]} 47. Nxd6 {[%clk 0:00:05.3]} 47... Kg6 {[%clk 0:00:23.5]}
48. Kf3 {[%clk 0:00:05.6]} 48... Nd3 {[%clk 0:00:19.7]} 49. Ne4 {[%clk
0:00:04.2]} 49... Kf5 {[%clk 0:00:18.5]} 50. d6 {[%clk 0:00:03.2]} 50... Ne5+
{[%clk 0:00:18.1]} 51. Ke2 {[%clk 0:00:01.8]} 51... Kxe4 {[%clk 0:00:19]} 52.
Kf2 {[%clk 0:00:01.6]} 52... Nd7 {[%clk 0:00:19]} 0-1